[Event "Titled Tuesday Blitz May 03 Late 2022"]
[White "Melkumyan, Hrant"]
[Black "Jones, Gawain C B"]
[WhiteFideId "13302485"]
[BlackFideId "409561"]
[WhiteElo "2604"]
[BlackElo "2657"]
[Result "1-0"]
[Round "10"]
[TimeControl "180+1"]
[Date "2022.05.03"]
[WhiteClock "0:00:39"]
[BlackClock "0:00:02"]

1. c4 {[%clk 0:02:39]}  e5 {[%clk 0:02:59]} 2. g3 {[%clk 0:02:39]}  Nc6 {[%clk 0:02:56]} 3. Bg2 {[%clk 0:02:39]}  f5 {[%clk 0:02:56]} 4. Nc3 {[%clk 0:02:39]}  Nf6 {[%clk 0:02:56]} 5. e3 {[%clk 0:02:39]}  Bb4 {[%clk 0:02:55]} 6. Nge2 {[%clk 0:02:40]}  O-O {[%clk 0:02:54]} 7. O-O {[%clk 0:02:39]}  Bxc3 {[%clk 0:02:52]} 8. Nxc3 {[%clk 0:02:39]}  d6 {[%clk 0:02:52]} 9. d4 {[%clk 0:02:39]}  Kh8 {[%clk 0:02:51]} 10. dxe5 {[%clk 0:02:34]}  dxe5 {[%clk 0:02:50]} 11. Qxd8 {[%clk 0:02:33]}  Nxd8 {[%clk 0:02:50]} 12. b3 {[%clk 0:02:30]}  c6 {[%clk 0:02:48]} 13. Ba3 {[%clk 0:02:30]}  Re8 {[%clk 0:02:48]} 14. Rfd1 {[%clk 0:02:29]}  Nf7 {[%clk 0:02:47]} 15. Na4 {[%clk 0:02:24]}  e4 {[%clk 0:02:46]} 16. Bb2 {[%clk 0:02:20]}  b6 {[%clk 0:02:41]} 17. c5 {[%clk 0:02:14]}  b5 {[%clk 0:02:36]} 18. Nc3 {[%clk 0:02:14]}  b4 {[%clk 0:02:34]} 19. Ne2 {[%clk 0:02:14]}  Be6 {[%clk 0:02:13]} 20. Bxf6 {[%clk 0:02:07]}  gxf6 {[%clk 0:02:13]} 21. Nd4 {[%clk 0:02:08]}  Ne5 {[%clk 0:02:11]} 22. Bh3 {[%clk 0:01:57]}  Bd7 {[%clk 0:01:45]} 23. Bxf5 {[%clk 0:01:51]}  Bxf5 {[%clk 0:01:37]} 24. Nxf5 {[%clk 0:01:51]}  Nf3+ {[%clk 0:01:03]} 25. Kg2 {[%clk 0:01:51]}  Re5 {[%clk 0:01:04]} 26. Nd6 {[%clk 0:01:50]}  Kg7 {[%clk 0:00:27]} 27. Nxe4 {[%clk 0:01:45]}  Nh4+ {[%clk 0:00:27]} 28. gxh4 {[%clk 0:01:46]}  Rxe4 {[%clk 0:00:28]} 29. Rd4 {[%clk 0:01:43]}  Rxd4 {[%clk 0:00:28]} 30. exd4 {[%clk 0:01:44]}  Rd8 {[%clk 0:00:28]} 31. Rd1 {[%clk 0:01:43]}  Rd5 {[%clk 0:00:28]} 32. Kf3 {[%clk 0:01:43]}  Kf7 {[%clk 0:00:28]} 33. h3 {[%clk 0:01:36]}  Rf5+ {[%clk 0:00:25]} 34. Kg3 {[%clk 0:01:20]}  Rd5 {[%clk 0:00:23]} 35. Kf4 {[%clk 0:01:19]}  Rh5 {[%clk 0:00:20]} 36. Kg4 {[%clk 0:01:18]}  Rd5 {[%clk 0:00:20]} 37. Rd3 {[%clk 0:01:19]}  a5 {[%clk 0:00:20]} 38. Kf4 {[%clk 0:01:14]}  Rh5 {[%clk 0:00:19]} 39. Rf3 {[%clk 0:01:10]}  Rxh4+ {[%clk 0:00:18]} 40. Ke3 {[%clk 0:01:10]}  Ke6 {[%clk 0:00:18]} 41. Kd3 {[%clk 0:01:11]}  f5 {[%clk 0:00:18]} 42. Re3+ {[%clk 0:01:09]}  Kf6 {[%clk 0:00:18]} 43. Rg3 {[%clk 0:01:02]}  f4 {[%clk 0:00:16]} 44. Rg4 {[%clk 0:01:01]}  Rxh3+ {[%clk 0:00:16]} 45. Ke4 {[%clk 0:01:01]}  Rc3 {[%clk 0:00:13]} 46. Rxf4+ {[%clk 0:01:01]}  Ke6 {[%clk 0:00:13]} 47. Rh4 {[%clk 0:01:00]}  Rc2 {[%clk 0:00:13]} 48. Rh6+ {[%clk 0:01:01]}  Kd7 {[%clk 0:00:13]} 49. Rxh7+ {[%clk 0:01:01]}  Kd8 {[%clk 0:00:11]} 50. Ke5 {[%clk 0:00:54]}  Rxf2 {[%clk 0:00:10]} 51. Ra7 {[%clk 0:00:55]}  Rh2 {[%clk 0:00:04]} 52. Rxa5 {[%clk 0:00:52]}  Rh5+ {[%clk 0:00:04]} 53. Ke4 {[%clk 0:00:52]}  Rh3 {[%clk 0:00:03]} 54. Ra7 {[%clk 0:00:51]}  Kc8 {[%clk 0:00:03]} 55. Rf7 {[%clk 0:00:50]}  Rh2 {[%clk 0:00:02]} 56. Kd3 {[%clk 0:00:44]}  Rxa2 {[%clk 0:00:02]} 57. Kc4 {[%clk 0:00:45]}  Rd2 {[%clk 0:00:03]} 58. Rf4 {[%clk 0:00:45]}  Kb7 {[%clk 0:00:03]} 59. Kxb4 {[%clk 0:00:44]}  Ka6 {[%clk 0:00:03]} 60. Kc3 {[%clk 0:00:43]}  Rh2 {[%clk 0:00:03]} 61. Rf8 {[%clk 0:00:43]}  Rh1 {[%clk 0:00:03]} 62. Rb8 {[%clk 0:00:43]}  Ka5 {[%clk 0:00:02]} 63. b4+ {[%clk 0:00:38]}  Ka6 {[%clk 0:00:02]} 64. Rb6+ {[%clk 0:00:39]}  Ka7 {[%clk 0:00:02]} 65. Rxc6 {[%clk 0:00:39]}  Rc1+ {[%clk 0:00:03]} 66. Kd3 {[%clk 0:00:39]}  Rb1 {[%clk 0:00:03]} 67. Kc4 {[%clk 0:00:39]}  Rc1+ {[%clk 0:00:03]} 68. Kb5 {[%clk 0:00:40]}  Rd1 {[%clk 0:00:04]} 69. Rd6 {[%clk 0:00:40]}  Rb1 {[%clk 0:00:03]} 70. d5 {[%clk 0:00:40]}  Kb8 {[%clk 0:00:03]} 71. Rh6 {[%clk 0:00:39]}  Kc7 {[%clk 0:00:02]} 72. d6+ {[%clk 0:00:39]}  Kd7 {[%clk 0:00:02]} 73. Rh7+ {[%clk 0:00:39]} 1-0


[Site "https://www.chess.com"]

[Event "Titled Tuesday Blitz May 03 Late 2022"]
[White "Mirzoev, Azer"]
[Black "Toncheva, Nadya"]
[WhiteFideId "13400304"]
[BlackFideId "2924056"]
[WhiteElo "2525"]
[BlackElo "1884"]
[Result "0-1"]
[Round "10"]
[TimeControl "180+1"]
[Date "2022.05.03"]
[WhiteClock "0:00:01"]
[BlackClock "0:00:08"]

1. Nf3 {[%clk 0:03:00]}  Nf6 {[%clk 0:02:54]} 2. b3 {[%clk 0:03:01]}  g6 {[%clk 0:02:51]} 3. Bb2 {[%clk 0:03:02]}  Bg7 {[%clk 0:02:52]} 4. e3 {[%clk 0:03:01]}  d6 {[%clk 0:02:53]} 5. c4 {[%clk 0:03:01]}  e5 {[%clk 0:02:52]} 6. d4 {[%clk 0:02:59]}  O-O {[%clk 0:02:46]} 7. dxe5 {[%clk 0:02:59]}  Ng4 {[%clk 0:02:46]} 8. h3 {[%clk 0:02:55]}  Nxe5 {[%clk 0:02:45]} 9. Nxe5 {[%clk 0:02:54]}  dxe5 {[%clk 0:02:46]} 10. Qxd8 {[%clk 0:02:53]}  Rxd8 {[%clk 0:02:47]} 11. Be2 {[%clk 0:02:39]}  c6 {[%clk 0:02:41]} 12. O-O {[%clk 0:02:32]}  Be6 {[%clk 0:02:37]} 13. Rc1 {[%clk 0:02:16]}  Na6 {[%clk 0:02:30]} 14. Na3 {[%clk 0:01:44]}  Rd7 {[%clk 0:02:04]} 15. Rd1 {[%clk 0:01:41]}  Rad8 {[%clk 0:02:02]} 16. Rxd7 {[%clk 0:01:33]}  Rxd7 {[%clk 0:02:03]} 17. Bc3 {[%clk 0:01:30]}  e4 {[%clk 0:01:45]} 18. Nb1 {[%clk 0:01:05]}  Bxc3 {[%clk 0:01:34]} 19. Nxc3 {[%clk 0:01:04]}  Rd2 {[%clk 0:01:35]} 20. Kf1 {[%clk 0:00:53]}  f5 {[%clk 0:01:29]} 21. Ke1 {[%clk 0:00:21]}  Rc2 {[%clk 0:01:15]} 22. Na4 {[%clk 0:00:20]}  Nb4 {[%clk 0:01:08]} 23. a3 {[%clk 0:00:11]}  Nd3+ {[%clk 0:00:29]} 24. Kd1 {[%clk 0:00:11]}  Rxe2 {[%clk 0:00:19]} 25. Kxe2 {[%clk 0:00:11]}  b5 {[%clk 0:00:20]} 26. cxb5 {[%clk 0:00:10]}  cxb5 {[%clk 0:00:21]} 27. Nc3 {[%clk 0:00:11]}  a6 {[%clk 0:00:18]} 28. b4 {[%clk 0:00:10]}  Bc4 {[%clk 0:00:17]} 29. Kd2 {[%clk 0:00:11]}  Nxf2 {[%clk 0:00:16]} 30. a4 {[%clk 0:00:11]}  Nd3 {[%clk 0:00:13]} 31. axb5 {[%clk 0:00:11]}  axb5 {[%clk 0:00:14]} 32. Ra8+ {[%clk 0:00:10]}  Kg7 {[%clk 0:00:14]} 33. Ra7+ {[%clk 0:00:11]}  Kh6 {[%clk 0:00:14]} 34. Ne2 {[%clk 0:00:10]}  Nxb4 {[%clk 0:00:13]} 35. Nd4 {[%clk 0:00:10]}  Nd5 {[%clk 0:00:11]} 36. g3 {[%clk 0:00:10]}  Nb4 {[%clk 0:00:08]} 37. Rb7 {[%clk 0:00:09]}  Nd3 {[%clk 0:00:08]} 38. h4 {[%clk 0:00:09]}  Nf2 {[%clk 0:00:08]} 39. Ne2 {[%clk 0:00:08]}  Nh1 {[%clk 0:00:07]} 40. Rb8 {[%clk 0:00:07]}  Bxe2 {[%clk 0:00:07]} 41. Kxe2 {[%clk 0:00:07]}  Nxg3+ {[%clk 0:00:08]} 42. Kf2 {[%clk 0:00:07]}  Nh5 {[%clk 0:00:08]} 43. Rxb5 {[%clk 0:00:07]}  Nf6 {[%clk 0:00:09]} 44. Rb7 {[%clk 0:00:06]}  Kh5 {[%clk 0:00:08]} 45. Kg3 {[%clk 0:00:05]}  h6 {[%clk 0:00:07]} 46. Rb5 {[%clk 0:00:05]}  Ng4 {[%clk 0:00:06]} 47. Kf4 {[%clk 0:00:05]}  Kxh4 {[%clk 0:00:06]} 48. Rb6 {[%clk 0:00:05]}  g5+ {[%clk 0:00:05]} 49. Kxf5 {[%clk 0:00:05]}  Nxe3+ {[%clk 0:00:05]} 50. Kxe4 {[%clk 0:00:06]}  Ng4 {[%clk 0:00:06]} 51. Ra6 {[%clk 0:00:05]}  h5 {[%clk 0:00:07]} 52. Kf3 {[%clk 0:00:05]}  Ne5+ {[%clk 0:00:06]} 53. Kg2 {[%clk 0:00:06]}  g4 {[%clk 0:00:05]} 54. Ra5 {[%clk 0:00:06]}  Nf3 {[%clk 0:00:05]} 55. Ra4 {[%clk 0:00:05]}  Ng5 {[%clk 0:00:04]} 56. Ra5 {[%clk 0:00:05]}  Nh3 {[%clk 0:00:05]} 57. Ra4 {[%clk 0:00:05]}  Ng5 {[%clk 0:00:04]} 58. Ra5 {[%clk 0:00:05]}  Nf3 {[%clk 0:00:05]} 59. Ra4 {[%clk 0:00:05]}  Ne1+ {[%clk 0:00:05]} 60. Kg1 {[%clk 0:00:05]}  Nd3 {[%clk 0:00:06]} 61. Ra5 {[%clk 0:00:04]}  Nb4 {[%clk 0:00:03]} 62. Ra4 {[%clk 0:00:04]}  Nd5 {[%clk 0:00:04]} 63. Ra5 {[%clk 0:00:04]}  Ne7 {[%clk 0:00:04]} 64. Kg2 {[%clk 0:00:04]}  Ng6 {[%clk 0:00:03]} 65. Kg1 {[%clk 0:00:03]}  Nf4 {[%clk 0:00:03]} 66. Ra4 {[%clk 0:00:03]}  Kg5 {[%clk 0:00:03]} 67. Ra5+ {[%clk 0:00:03]}  Kg6 {[%clk 0:00:03]} 68. Ra6+ {[%clk 0:00:03]}  Kf5 {[%clk 0:00:04]} 69. Ra5+ {[%clk 0:00:03]}  Ke4 {[%clk 0:00:04]} 70. Ra4+ {[%clk 0:00:03]}  Ke3 {[%clk 0:00:05]} 71. Ra3+ {[%clk 0:00:03]}  Nd3 {[%clk 0:00:05]} 72. Kg2 {[%clk 0:00:02]}  h4 {[%clk 0:00:05]} 73. Ra4 {[%clk 0:00:02]}  Nf4+ {[%clk 0:00:05]} 74. Kg1 {[%clk 0:00:01]}  g3 {[%clk 0:00:06]} 75. Ra3+ {[%clk 0:00:01]}  Ke2 {[%clk 0:00:06]} 76. Ra2+ {[%clk 0:00:01]}  Kf3 {[%clk 0:00:06]} 77. Ra3+ {[%clk 0:00:01]}  Kg4 {[%clk 0:00:07]} 78. Ra4 {[%clk 0:00:01]}  h3 {[%clk 0:00:07]} 79. Rb4 {[%clk 0:00:01]}  Kf3 {[%clk 0:00:08]} 80. Rb3+ {[%clk 0:00:01]}  Kg4 {[%clk 0:00:08]} 81. Rb4 {[%clk 0:00:01]}  h2+ {[%clk 0:00:08]} 82. Kh1 {[%clk 0:00:01]}  Kh3 {[%clk 0:00:08]} 0-1


[Site "https://www.chess.com"]

[Event "Titled Tuesday Blitz May 03 Late 2022"]
[White "Nakamura, Hikaru"]
[Black "Zhigalko, Sergei"]
[WhiteFideId "2016192"]
[BlackFideId "13502956"]
[WhiteElo "2850"]
[BlackElo "2662"]
[Result "1-0"]
[Round "10"]
[TimeControl "180+1"]
[Date "2022.05.03"]
[WhiteClock "0:00:05"]
[BlackClock "0:00:01"]

1. Nf3 {[%clk 0:03:00]}  d5 {[%clk 0:02:59]} 2. e3 {[%clk 0:03:00]}  Nf6 {[%clk 0:02:58]} 3. b3 {[%clk 0:02:58]}  e6 {[%clk 0:02:57]} 4. Bb2 {[%clk 0:02:56]}  Bd6 {[%clk 0:02:57]} 5. c4 {[%clk 0:02:56]}  O-O {[%clk 0:02:58]} 6. g3 {[%clk 0:02:57]}  b6 {[%clk 0:02:53]} 7. Bg2 {[%clk 0:02:57]}  Bb7 {[%clk 0:02:52]} 8. O-O {[%clk 0:02:54]}  Nbd7 {[%clk 0:02:50]} 9. cxd5 {[%clk 0:02:49]}  Nxd5 {[%clk 0:02:44]} 10. Qe2 {[%clk 0:02:48]}  a5 {[%clk 0:02:42]} 11. Rc1 {[%clk 0:02:40]}  Ba6 {[%clk 0:02:35]} 12. d3 {[%clk 0:02:40]}  Nc5 {[%clk 0:02:31]} 13. Ne1 {[%clk 0:02:40]}  Nb4 {[%clk 0:02:18]} 14. Rd1 {[%clk 0:02:25]}  Be7 {[%clk 0:01:53]} 15. Bxa8 {[%clk 0:01:57]}  Qxa8 {[%clk 0:01:54]} 16. Qg4 {[%clk 0:01:57]}  f6 {[%clk 0:01:37]} 17. Bc3 {[%clk 0:01:33]}  Nbxd3 {[%clk 0:01:24]} 18. Nxd3 {[%clk 0:01:26]}  Bxd3 {[%clk 0:01:25]} 19. Rxd3 {[%clk 0:01:20]}  Nxd3 {[%clk 0:01:25]} 20. Qxe6+ {[%clk 0:01:21]}  Rf7 {[%clk 0:01:20]} 21. Nd2 {[%clk 0:01:21]}  Nc5 {[%clk 0:00:57]} 22. Qc4 {[%clk 0:01:19]}  Qa6 {[%clk 0:00:52]} 23. Qg4 {[%clk 0:01:09]}  Qd3 {[%clk 0:00:47]} 24. Rc1 {[%clk 0:01:07]}  Bf8 {[%clk 0:00:39]} 25. Nc4 {[%clk 0:00:58]}  Ne4 {[%clk 0:00:31]} 26. Bb2 {[%clk 0:00:43]}  f5 {[%clk 0:00:09]} 27. Qd1 {[%clk 0:00:30]}  Rd7 {[%clk 0:00:08]} 28. Qxd3 {[%clk 0:00:21]}  Rxd3 {[%clk 0:00:09]} 29. Kf1 {[%clk 0:00:21]}  b5 {[%clk 0:00:05]} 30. Nxa5 {[%clk 0:00:11]}  Rd2 {[%clk 0:00:05]} 31. Be5 {[%clk 0:00:11]}  Rxf2+ {[%clk 0:00:05]} 32. Kg1 {[%clk 0:00:11]}  Rxa2 {[%clk 0:00:05]} 33. Nc6 {[%clk 0:00:12]}  Bd6 {[%clk 0:00:04]} 34. Bxd6 {[%clk 0:00:10]}  cxd6 {[%clk 0:00:05]} 35. Nd4 {[%clk 0:00:11]}  g6 {[%clk 0:00:04]} 36. Nxb5 {[%clk 0:00:09]}  Nd2 {[%clk 0:00:04]} 37. Nd4 {[%clk 0:00:09]}  Rb2 {[%clk 0:00:04]} 38. Rc3 {[%clk 0:00:06]}  Kf7 {[%clk 0:00:03]} 39. Rc7+ {[%clk 0:00:05]}  Kf6 {[%clk 0:00:04]} 40. Rb7 {[%clk 0:00:06]}  h5 {[%clk 0:00:03]} 41. h4 {[%clk 0:00:05]}  Ne4 {[%clk 0:00:03]} 42. b4 {[%clk 0:00:04]}  Nxg3 {[%clk 0:00:03]} 43. b5 {[%clk 0:00:04]}  Ne2+ {[%clk 0:00:03]} 44. Nxe2 {[%clk 0:00:02]}  Rxe2 {[%clk 0:00:04]} 45. b6 {[%clk 0:00:02]}  Rxe3 {[%clk 0:00:03]} 46. Rd7 {[%clk 0:00:02]}  Ke6 {[%clk 0:00:02]} 47. Rg7 {[%clk 0:00:03]}  Kf6 {[%clk 0:00:02]} 48. Rd7 {[%clk 0:00:01]}  Re5 {[%clk 0:00:02]} 49. Rxd6+ {[%clk 0:00:02]}  Ke7 {[%clk 0:00:02]} 50. Rxg6 {[%clk 0:00:02]}  Re4 {[%clk 0:00:02]} 51. Kf2 {[%clk 0:00:03]}  Rxh4 {[%clk 0:00:02]} 52. b7 {[%clk 0:00:04]}  Rb4 {[%clk 0:00:02]} 53. Rg8 {[%clk 0:00:04]}  Rb2+ {[%clk 0:00:02]} 54. Kf3 {[%clk 0:00:05]}  Kf7 {[%clk 0:00:01]} 55. b8=Q {[%clk 0:00:05]} 1-0


[Site "https://www.chess.com"]

[Event "Titled Tuesday Blitz May 03 Late 2022"]
[White "Petrova, Irina"]
[Black "Jegorovas, Aleksandras"]
[WhiteFideId "14124122"]
[BlackFideId "12801950"]
[WhiteElo "1993"]
[BlackElo "2247"]
[Result "0-1"]
[Round "10"]
[TimeControl "180+1"]
[Date "2022.05.03"]
[WhiteClock "0:01:29"]
[BlackClock "0:00:53"]

1. e4 {[%clk 0:03:00]}  e6 {[%clk 0:02:58]} 2. d4 {[%clk 0:03:00]}  d5 {[%clk 0:02:58]} 3. Nc3 {[%clk 0:03:00]}  Bb4 {[%clk 0:02:54]} 4. Ne2 {[%clk 0:03:00]}  Nc6 {[%clk 0:02:53]} 5. a3 {[%clk 0:02:54]}  Ba5 {[%clk 0:02:49]} 6. b4 {[%clk 0:02:52]}  Bb6 {[%clk 0:02:49]} 7. e5 {[%clk 0:02:52]}  Nge7 {[%clk 0:02:46]} 8. Na4 {[%clk 0:02:51]}  Nf5 {[%clk 0:02:35]} 9. Nxb6 {[%clk 0:02:49]}  axb6 {[%clk 0:02:34]} 10. Bb2 {[%clk 0:02:44]}  O-O {[%clk 0:02:32]} 11. g3 {[%clk 0:02:43]}  f6 {[%clk 0:02:31]} 12. Bg2 {[%clk 0:02:38]}  fxe5 {[%clk 0:02:28]} 13. dxe5 {[%clk 0:02:39]}  Bd7 {[%clk 0:02:19]} 14. O-O {[%clk 0:02:39]}  Be8 {[%clk 0:02:19]} 15. Nf4 {[%clk 0:02:35]}  Bf7 {[%clk 0:02:02]} 16. h4 {[%clk 0:02:31]}  g5 {[%clk 0:01:53]} 17. Qg4 {[%clk 0:02:24]}  h6 {[%clk 0:01:34]} 18. hxg5 {[%clk 0:02:24]}  Qxg5 {[%clk 0:01:34]} 19. Qxg5+ {[%clk 0:02:15]}  hxg5 {[%clk 0:01:33]} 20. Nd3 {[%clk 0:02:16]}  Bh5 {[%clk 0:01:24]} 21. f3 {[%clk 0:01:59]}  Nxg3 {[%clk 0:01:23]} 22. Rf2 {[%clk 0:01:55]}  Bg6 {[%clk 0:01:21]} 23. Bh3 {[%clk 0:01:43]}  Bf5 {[%clk 0:01:02]} 24. Kg2 {[%clk 0:01:43]}  Bxh3+ {[%clk 0:01:01]} 25. Kxg3 {[%clk 0:01:44]}  Bf5 {[%clk 0:01:00]} 26. Rh1 {[%clk 0:01:39]}  Kg7 {[%clk 0:00:58]} 27. Rfh2 {[%clk 0:01:36]}  Rh8 {[%clk 0:00:55]} 28. Nf4 {[%clk 0:01:29]}  gxf4+ {[%clk 0:00:53]} 0-1


[Site "https://www.chess.com"]

[Event "Titled Tuesday Blitz May 03 Late 2022"]
[White "Pinheiro, Iung Alicio de O."]
[Black "Sliwicki, Damian"]
[WhiteFideId "2104350"]
[BlackFideId "1127128"]
[WhiteElo "2520"]
[BlackElo "2084"]
[Result "1-0"]
[Round "10"]
[TimeControl "180+1"]
[Date "2022.05.03"]
[WhiteClock "0:00:11"]
[BlackClock "0:00:10"]

1. c4 {[%clk 0:03:00]}  Nf6 {[%clk 0:02:52]} 2. g3 {[%clk 0:02:59]}  e6 {[%clk 0:02:51]} 3. Bg2 {[%clk 0:02:59]}  d5 {[%clk 0:02:52]} 4. Nf3 {[%clk 0:02:59]}  c5 {[%clk 0:02:43]} 5. cxd5 {[%clk 0:02:57]}  exd5 {[%clk 0:02:43]} 6. d4 {[%clk 0:02:57]}  Nc6 {[%clk 0:02:42]} 7. O-O {[%clk 0:02:55]}  Be6 {[%clk 0:02:41]} 8. Nc3 {[%clk 0:02:52]}  cxd4 {[%clk 0:02:27]} 9. Nxd4 {[%clk 0:02:51]}  Bc5 {[%clk 0:02:08]} 10. Nxc6 {[%clk 0:02:46]}  bxc6 {[%clk 0:02:02]} 11. e4 {[%clk 0:02:26]}  O-O {[%clk 0:01:59]} 12. Bg5 {[%clk 0:02:22]}  h6 {[%clk 0:01:49]} 13. Bf4 {[%clk 0:02:07]}  dxe4 {[%clk 0:01:35]} 14. Nxe4 {[%clk 0:02:03]}  Nxe4 {[%clk 0:01:33]} 15. Bxe4 {[%clk 0:02:04]}  Qb6 {[%clk 0:01:31]} 16. Qc2 {[%clk 0:02:03]}  Bd5 {[%clk 0:01:07]} 17. b3 {[%clk 0:01:06]}  Rfe8 {[%clk 0:01:04]} 18. Bh7+ {[%clk 0:00:42]}  Kh8 {[%clk 0:01:02]} 19. Rad1 {[%clk 0:00:43]}  Bf3 {[%clk 0:00:56]} 20. Rd2 {[%clk 0:00:37]}  Bb4 {[%clk 0:00:23]} 21. Rd7 {[%clk 0:00:26]}  Re2 {[%clk 0:00:23]} 22. Qf5 {[%clk 0:00:20]}  Bc5 {[%clk 0:00:18]} 23. Be3 {[%clk 0:00:14]}  Rxe3 {[%clk 0:00:13]} 24. Qxf7 {[%clk 0:00:14]}  Bd4 {[%clk 0:00:05]} 25. Bb1 {[%clk 0:00:03]}  Re1 {[%clk 0:00:05]} 26. Qxf3 {[%clk 0:00:03]}  Bxf2+ {[%clk 0:00:05]} 27. Kg2 {[%clk 0:00:02]}  Rxf1 {[%clk 0:00:05]} 28. Kxf1 {[%clk 0:00:03]}  Bg1 {[%clk 0:00:05]} 29. Qf5 {[%clk 0:00:03]}  Qf2+ {[%clk 0:00:02]} 30. Qxf2 {[%clk 0:00:03]}  Bxf2 {[%clk 0:00:03]} 31. Kxf2 {[%clk 0:00:04]}  Rf8+ {[%clk 0:00:04]} 32. Kg2 {[%clk 0:00:05]}  Re8 {[%clk 0:00:05]} 33. Bg6 {[%clk 0:00:05]}  Re2+ {[%clk 0:00:03]} 34. Kf3 {[%clk 0:00:06]}  Re8 {[%clk 0:00:03]} 35. Bxe8 {[%clk 0:00:06]}  g5 {[%clk 0:00:02]} 36. Bg6 {[%clk 0:00:05]}  g4+ {[%clk 0:00:02]} 37. Kxg4 {[%clk 0:00:05]}  h5+ {[%clk 0:00:03]} 38. Kxh5 {[%clk 0:00:06]}  Kg8 {[%clk 0:00:04]} 39. Kh6 {[%clk 0:00:06]}  Kf8 {[%clk 0:00:05]} 40. Rf7+ {[%clk 0:00:06]}  Ke8 {[%clk 0:00:06]} 41. Kg7 {[%clk 0:00:07]}  Kd8 {[%clk 0:00:06]} 42. Kf6 {[%clk 0:00:08]}  Kc8 {[%clk 0:00:07]} 43. Ke6 {[%clk 0:00:09]}  Kb8 {[%clk 0:00:08]} 44. Kd6 {[%clk 0:00:10]}  a5 {[%clk 0:00:08]} 45. Kxc6 {[%clk 0:00:10]}  Ka8 {[%clk 0:00:09]} 46. Kb6 {[%clk 0:00:11]}  a4 {[%clk 0:00:10]} 47. Rf8# {[%clk 0:00:11]} 1-0


[Site "https://www.chess.com"]

[Event "Titled Tuesday Blitz May 03 Late 2022"]
[White "Rasulov, Vugar"]
[Black "Andreikin, Dmitry"]
[WhiteFideId "13402390"]
[BlackFideId "4158814"]
[WhiteElo "2560"]
[BlackElo "2736"]
[Result "1/2-1/2"]
[Round "10"]
[TimeControl "180+1"]
[Date "2022.05.03"]
[WhiteClock "0:00:06"]
[BlackClock "0:00:03"]

1. d4 {[%clk 0:03:00]}  d5 {[%clk 0:02:59]} 2. c4 {[%clk 0:03:00]}  e6 {[%clk 0:03:00]} 3. Nf3 {[%clk 0:03:00]}  Nf6 {[%clk 0:02:58]} 4. g3 {[%clk 0:03:01]}  Be7 {[%clk 0:02:57]} 5. Bg2 {[%clk 0:03:01]}  O-O {[%clk 0:02:58]} 6. O-O {[%clk 0:03:02]}  c6 {[%clk 0:02:57]} 7. Qc2 {[%clk 0:03:00]}  b6 {[%clk 0:02:56]} 8. Bf4 {[%clk 0:02:55]}  Ba6 {[%clk 0:02:53]} 9. b3 {[%clk 0:02:50]}  Nbd7 {[%clk 0:02:53]} 10. Rc1 {[%clk 0:02:49]}  Rc8 {[%clk 0:02:52]} 11. a4 {[%clk 0:02:49]}  c5 {[%clk 0:02:49]} 12. dxc5 {[%clk 0:02:30]}  Bxc5 {[%clk 0:02:40]} 13. Nbd2 {[%clk 0:02:24]}  Qe7 {[%clk 0:02:40]} 14. Qb2 {[%clk 0:02:16]}  h6 {[%clk 0:02:33]} 15. Ne5 {[%clk 0:02:01]}  Rfd8 {[%clk 0:02:21]} 16. Nd3 {[%clk 0:01:58]}  e5 {[%clk 0:02:09]} 17. Nxe5 {[%clk 0:01:46]}  Nxe5 {[%clk 0:02:05]} 18. Bxe5 {[%clk 0:01:42]}  Ng4 {[%clk 0:01:25]} 19. Bd4 {[%clk 0:01:32]}  dxc4 {[%clk 0:01:10]} 20. Bxc5 {[%clk 0:01:32]}  Qxc5 {[%clk 0:01:09]} 21. Ne4 {[%clk 0:01:30]}  Qb4 {[%clk 0:01:04]} 22. Rc3 {[%clk 0:01:04]}  f5 {[%clk 0:00:40]} 23. Nd2 {[%clk 0:00:39]}  cxb3 {[%clk 0:00:40]} 24. Rxc8 {[%clk 0:00:37]}  Bxc8 {[%clk 0:00:39]} 25. Qxb3+ {[%clk 0:00:29]}  Qxb3 {[%clk 0:00:38]} 26. Nxb3 {[%clk 0:00:30]}  Be6 {[%clk 0:00:38]} 27. Rb1 {[%clk 0:00:27]}  Bxb3 {[%clk 0:00:37]} 28. Rxb3 {[%clk 0:00:28]}  Rd1+ {[%clk 0:00:37]} 29. Bf1 {[%clk 0:00:29]}  Nxh2 {[%clk 0:00:33]} 30. Kxh2 {[%clk 0:00:27]}  Rxf1 {[%clk 0:00:34]} 31. Rf3 {[%clk 0:00:24]}  Ra1 {[%clk 0:00:28]} 32. Rf4 {[%clk 0:00:23]}  g5 {[%clk 0:00:26]} 33. Rd4 {[%clk 0:00:23]}  Ra2 {[%clk 0:00:26]} 34. Kg2 {[%clk 0:00:23]}  Rxe2 {[%clk 0:00:25]} 35. Rd7 {[%clk 0:00:20]}  a5 {[%clk 0:00:18]} 36. Rd6 {[%clk 0:00:21]}  Kg7 {[%clk 0:00:15]} 37. Rxb6 {[%clk 0:00:21]}  Re5 {[%clk 0:00:12]} 38. Rb7+ {[%clk 0:00:19]}  Kg6 {[%clk 0:00:11]} 39. Rb6+ {[%clk 0:00:20]}  Kg7 {[%clk 0:00:10]} 40. Rb7+ {[%clk 0:00:20]}  Kf6 {[%clk 0:00:10]} 41. Rb6+ {[%clk 0:00:20]}  Kf7 {[%clk 0:00:10]} 42. Rxh6 {[%clk 0:00:13]}  Re4 {[%clk 0:00:11]} 43. Rh7+ {[%clk 0:00:12]}  Ke6 {[%clk 0:00:08]} 44. Rh6+ {[%clk 0:00:12]}  Ke5 {[%clk 0:00:06]} 45. Rb6 {[%clk 0:00:12]}  Rxa4 {[%clk 0:00:06]} 46. Rb5+ {[%clk 0:00:13]}  Ke6 {[%clk 0:00:06]} 47. Rb6+ {[%clk 0:00:13]}  Kf7 {[%clk 0:00:05]} 48. Rb7+ {[%clk 0:00:13]}  Kg6 {[%clk 0:00:06]} 49. Rb6+ {[%clk 0:00:14]}  Kh5 {[%clk 0:00:07]} 50. Rb5 {[%clk 0:00:13]}  Kg6 {[%clk 0:00:05]} 51. Rb6+ {[%clk 0:00:13]}  Kg7 {[%clk 0:00:06]} 52. Rb5 {[%clk 0:00:13]}  Kf6 {[%clk 0:00:04]} 53. Rb6+ {[%clk 0:00:14]}  Ke7 {[%clk 0:00:04]} 54. Rb5 {[%clk 0:00:13]}  Ke6 {[%clk 0:00:04]} 55. Rb6+ {[%clk 0:00:14]}  Kd5 {[%clk 0:00:04]} 56. Rb5+ {[%clk 0:00:14]}  Kc4 {[%clk 0:00:04]} 57. Rxf5 {[%clk 0:00:14]}  g4 {[%clk 0:00:05]} 58. Rg5 {[%clk 0:00:11]}  Kb3 {[%clk 0:00:03]} 59. Rb5+ {[%clk 0:00:11]}  Kc3 {[%clk 0:00:03]} 60. Rc5+ {[%clk 0:00:11]}  Kd3 {[%clk 0:00:03]} 61. Rd5+ {[%clk 0:00:11]}  Kc3 {[%clk 0:00:03]} 62. Rc5+ {[%clk 0:00:11]}  Kb3 {[%clk 0:00:03]} 63. Rb5+ {[%clk 0:00:10]}  Kc4 {[%clk 0:00:03]} 64. Rf5 {[%clk 0:00:10]}  Kc3 {[%clk 0:00:03]} 65. Rc5+ {[%clk 0:00:06]} 1/2-1/2


[Site "https://www.chess.com"]